fUSD/lending_fUSD_20260530
["ID","MTS","AMOUNT","RATE_DAILY","PERIOD"]
[423484131,1780155238000,-407.0,0.00035951,2]
[423484133,1780155238000,-150.0,0.00035951,2]
[423484135,1780155238000,-1333.76280455,0.00035955,7]
[423484201,1780155239000,-250.0,0.00036578,2]
[423484196,1780155239000,-5000.0,0.00036578,2]
[423484215,1780155239000,-309.6,0.00036795,120]
[423484205,1780155239000,-2456.9231,0.00036605,2]
[423484194,1780155239000,-5849322.2171,0.00036554,30]
[423484195,1780155239000,-5000.0,0.00036578,2]
[423484200,1780155239000,-250.0,0.00036578,2]
[423484199,1780155239000,-250.0,0.00036578,2]
[423484203,1780155239000,-151.25,0.00036602,60]
[423484198,1780155239000,-5272.40364189,0.00036578,2]
[423484206,1780155239000,-1641.49,0.00036615,10]
[423484197,1780155239000,-5000.0,0.00036578,2]
[423484204,1780155239000,-11220.38,0.00036605,2]
[423484211,1780155239000,-1229.0,0.00036731,14]
[423484207,1780155239000,-157.99773033,0.00036627,2]
[423484212,1780155239000,-11220.38,0.00036733,2]
[423484208,1780155239000,-2537.92,0.00036689,10]
[423484210,1780155239000,-2507.36,0.00036718,10]
[423484213,1780155239000,-2456.9231,0.00036733,2]
[423484209,1780155239000,-151.25,0.00036702,60]
[423484216,1780155239000,-1641.68241122,0.000368,2]
[423484225,1780155239000,-195.48,0.000369,2]
[423484218,1780155239000,-151.25,0.00036802,60]
[423484217,1780155239000,-1528813.85074129,0.000368,2]
[423484219,1780155239000,-846.86205456,0.00036822,2]
[423484214,1780155239000,-1107.01,0.0003676,120]
[423484202,1780155239000,-250.0,0.00036578,2]
[423484166,1780155239000,-2456.9231,0.00036093,2]
[423484189,1780155239000,-11220.38,0.00036477,2]
[423484167,1780155239000,-2511.58,0.00036101,10]
[423484168,1780155239000,-2516.09,0.00036146,10]
[423484169,1780155239000,-2671.5,0.00036153,30]
[423484172,1780155239000,-156.0,0.00036192,3]
[423484173,1780155239000,-211.03,0.000362,31]
[423484174,1780155239000,-173.638335,0.000362,31]
[423484175,1780155239000,-1107.01,0.0003621,114]
[423484170,1780155239000,-1285.73,0.00036166,10]
[423484171,1780155239000,-1229.0,0.00036177,13]
[423484176,1780155239000,-11220.38,0.00036221,2]
[423484180,1780155239000,-225.94038496,0.000363,5]
[423484177,1780155239000,-2456.9231,0.00036221,2]
[423484179,1780155239000,-152.0,0.000363,33]
[423484178,1780155239000,-150.0,0.00036247,2]
[423484182,1780155239000,-11220.38,0.00036349,2]
[423484181,1780155239000,-309.6,0.00036301,120]
[423484192,1780155239000,-2516.09,0.00036528,10]
[423484183,1780155239000,-2456.9231,0.00036349,2]
[423484186,1780155239000,-379.74428807,0.00036356,93]
[423484188,1780155239000,-70143.0,0.000364,30]
[423484191,1780155239000,-793.42,0.00036495,30]
[423484190,1780155239000,-2456.9231,0.00036477,2]
[423484185,1780155239000,-379.74428807,0.00036356,93]
[423484184,1780155239000,-157.99773033,0.00036353,2]
[423484223,1780155239000,-2456.9231,0.00036861,2]
[423484193,1780155239000,-309.6,0.00036548,120]
[423484221,1780155239000,-350.0,0.00036854,15]
[423484187,1780155239000,-239.69478274,0.00036372,60]
[423484220,1780155239000,-350.0,0.00036849,5]
[423484252,1780155239000,-250.0,0.00036976,2]
[423484258,1780155239000,-200.0,0.00036979,5]
[423484260,1780155239000,-200.0,0.0003698,5]
[423484257,1780155239000,-200.0,0.00036979,5]
[423484259,1780155239000,-200.0,0.0003698,5]
[423484255,1780155239000,-250.0,0.00036976,2]
[423484256,1780155239000,-250.0,0.00036976,2]
[423484262,1780155239000,-200.0,0.00036987,5]
[423484265,1780155239000,-250.0,0.00037,7]
[423484264,1780155239000,-2456.9231,0.00036989,2]
[423484263,1780155239000,-11220.38,0.00036989,2]
[423484268,1780155239000,-500.0,0.00037,14]
[423484254,1780155239000,-250.0,0.00036976,2]
[423484266,1780155239000,-300.12212,0.00037,10]
[423484273,1780155239000,-4500.0,0.00037,2]
[423484269,1780155239000,-500.0,0.00037,14]
[423484270,1780155239000,-2211.25627254,0.00037,20]
[423484272,1780155239000,-168.88963612,0.00037,2]
[423484271,1780155239000,-365.0,0.00037,2]
[423484275,1780155239000,-150.0,0.00037,2]
[423484274,1780155239000,-172.0,0.00037,30]
[423484277,1780155239000,-544.0,0.00037,30]
[423484276,1780155239000,-181.795,0.00037,2]
[423484279,1780155239000,-13362.51,0.00037,30]
[423484278,1780155239000,-13362.51,0.00037,30]
[423484224,1780155239000,-150.0,0.0003688,2]
[423484267,1780155239000,-500.0,0.00037,14]
[423484253,1780155239000,-250.0,0.00036976,2]
[423484280,1780155239000,-1067.0,0.00037,30]
[423484261,1780155239000,-200.0,0.00036985,5]
[423484222,1780155239000,-11220.38,0.00036861,2]
[423484226,1780155239000,-4336.64,0.000369,2]
[423484228,1780155239000,-7805.96,0.000369,2]
[423484227,1780155239000,-257.02,0.000369,2]
[423484238,1780155239000,-151.25,0.00036902,60]
[423484229,1780155239000,-3351.71,0.000369,2]
[423484231,1780155239000,-1264.4,0.000369,2]
[423484250,1780155239000,-250.0,0.00036976,2]
[423484232,1780155239000,-12300.7,0.000369,2]
[423484233,1780155239000,-1758.89,0.000369,2]
[423484236,1780155239000,-355.0,0.000369,14]
[423484235,1780155239000,-355.0,0.000369,14]
[423484234,1780155239000,-706.3,0.000369,120]
[423484230,1780155239000,-11610.85,0.000369,2]
[423484239,1780155239000,-200.0,0.00036951,5]
[423484251,1780155239000,-250.0,0.00036976,2]
[423484237,1780155239000,-157.99773033,0.00036901,2]
[423484247,1780155239000,-5000.0,0.00036976,2]
[423484248,1780155239000,-5000.0,0.00036976,2]
[423484249,1780155239000,-250.0,0.00036976,2]
[423484246,1780155239000,-5000.0,0.00036976,2]
[423484243,1780155239000,-5000.0,0.00036976,2]
[423484241,1780155239000,-5000.0,0.00036976,2]
[423484240,1780155239000,-200.0,0.00036962,5]
[423484244,1780155239000,-5000.0,0.00036976,2]
[423484242,1780155239000,-5000.0,0.00036976,2]
[423484245,1780155239000,-5000.0,0.00036976,2]
[423484319,1780155240000,-300.0,0.00037362,2]
[423484318,1780155240000,-300.0,0.00037362,2]
[423484315,1780155240000,-300.0,0.00037362,2]
[423484316,1780155240000,-300.0,0.00037362,2]
[423484310,1780155240000,-640.22132363,0.000373,30]
[423484311,1780155240000,-640.22132363,0.000373,30]
[423484313,1780155240000,-151.25,0.00037302,60]
[423484312,1780155240000,-640.22132363,0.000373,30]
[423484314,1780155240000,-300.0,0.00037362,2]
[423484320,1780155240000,-311.6,0.00037362,2]
[423484317,1780155240000,-300.0,0.00037362,2]
[423484339,1780155240000,-500.0,0.00037424,120]
[423484324,1780155240000,-250.0,0.00037373,2]
[423484323,1780155240000,-250.0,0.00037373,2]
[423484325,1780155240000,-250.0,0.00037373,2]
[423484326,1780155240000,-250.0,0.00037373,2]
[423484327,1780155240000,-250.0,0.00037373,2]
[423484328,1780155240000,-250.0,0.00037373,2]
[423484322,1780155240000,-2456.9231,0.00037373,2]
[423484331,1780155240000,-5000.0,0.00037373,2]
[423484329,1780155240000,-260.24853698,0.00037373,2]
[423484330,1780155240000,-5000.0,0.00037373,2]
[423484334,1780155240000,-5000.0,0.00037373,2]
[423484308,1780155240000,-640.22132365,0.000373,30]
[423484321,1780155240000,-11220.38,0.00037373,2]
[423484307,1780155240000,-1777.39355484,0.000373,30]
[423484293,1780155240000,-939.08882064,0.000372,30]
[423484304,1780155240000,-1107.01,0.000373,60]
[423484332,1780155240000,-5000.0,0.00037373,2]
[423484285,1780155240000,-234639.72185016,0.000371,2]
[423484283,1780155240000,-309.6,0.00037041,120]
[423484282,1780155240000,-151.25,0.00037002,60]
[423484281,1780155240000,-1111.0,0.00037,7]
[423484284,1780155240000,-500.1,0.0003708,31]
[423484288,1780155240000,-500.0,0.00037114,2]
[423484286,1780155240000,-2000.0,0.000371,7]
[423484290,1780155240000,-2456.9231,0.00037117,2]
[423484287,1780155240000,-151.25,0.00037102,60]
[423484289,1780155240000,-11220.38,0.00037117,2]
[423484295,1780155240000,-939.08882063,0.000372,30]
[423484296,1780155240000,-311.17614058,0.000372,30]
[423484297,1780155240000,-311.17614057,0.000372,30]
[423484292,1780155240000,-157.99773033,0.00037175,2]
[423484291,1780155240000,-500.0,0.00037174,2]
[423484294,1780155240000,-939.08882063,0.000372,30]
[423484299,1780155240000,-151.25,0.00037202,60]
[423484300,1780155240000,-11220.38,0.00037245,2]
[423484301,1780155240000,-2456.9231,0.00037245,2]
[423484303,1780155240000,-309.8,0.00037288,120]
[423484298,1780155240000,-311.17614057,0.000372,30]
[423484302,1780155240000,-1229.0,0.00037286,14]
[423484309,1780155240000,-640.22132365,0.000373,30]
[423484305,1780155240000,-1777.39355484,0.000373,30]
[423484306,1780155240000,-1777.39355484,0.000373,30]
[423484333,1780155240000,-5000.0,0.00037373,2]
[423484340,1780155240000,-500.0,0.00037424,120]
[423484336,1780155240000,-5000.0,0.00037373,2]
[423484365,1780155240000,-700.0,0.00037424,120]
[423484367,1780155240000,-700.0,0.00037424,120]
[423484375,1780155240000,-407.0,0.00037449,2]
[423484373,1780155240000,-160.14063263,0.00037449,2]
[423484369,1780155240000,-700.0,0.00037424,120]
[423484371,1780155240000,-700.0,0.00037424,120]
[423484374,1780155240000,-400.0,0.00037449,2]
[423484370,1780155240000,-700.0,0.00037424,120]
[423484372,1780155240000,-907.4193379,0.00037424,120]
[423484377,1780155240000,-157.99773033,0.00037449,2]
[423484387,1780155240000,-70143.0,0.000376,30]
[423484379,1780155240000,-5101.66010265,0.000375,7]
[423484380,1780155240000,-776.42186545,0.000375,7]
[423484378,1780155240000,-11500.0,0.00037463,7]
[423484382,1780155240000,-11220.38,0.00037501,2]
[423484376,1780155240000,-150.0,0.00037449,2]
[423484385,1780155240000,-524.8942692,0.00037563,99]
[423484386,1780155240000,-4418.02203108,0.0003759,2]
[423484384,1780155240000,-151.25,0.00037502,60]
[423484383,1780155240000,-2456.9231,0.00037501,2]
[423484388,1780155240000,-151.25,0.00037602,60]
[423484392,1780155240000,-721.41,0.000377,60]
[423484390,1780155240000,-11220.3807,0.00037629,2]
[423484391,1780155240000,-2456.9241,0.00037629,2]
[423484389,1780155240000,-1970.92,0.00037606,30]
[423484366,1780155240000,-700.0,0.00037424,120]
[423484368,1780155240000,-700.0,0.00037424,120]
[423484381,1780155240000,-2500.0,0.000375,120]
[423484364,1780155240000,-700.0,0.00037424,120]
[423484363,1780155240000,-700.0,0.00037424,120]
[423484335,1780155240000,-5000.0,0.00037373,2]
[423484337,1780155240000,-50000.0,0.00037394,2]
[423484341,1780155240000,-500.0,0.00037424,120]
[423484351,1780155240000,-700.0,0.00037424,120]
[423484342,1780155240000,-500.0,0.00037424,120]
[423484346,1780155240000,-700.0,0.00037424,120]
[423484345,1780155240000,-700.0,0.00037424,120]
[423484349,1780155240000,-700.0,0.00037424,120]
[423484347,1780155240000,-700.0,0.00037424,120]
[423484343,1780155240000,-500.0,0.00037424,120]
[423484344,1780155240000,-736.13116,0.00037424,120]
[423484348,1780155240000,-700.0,0.00037424,120]
[423484338,1780155240000,-151.25,0.00037402,60]
[423484356,1780155240000,-700.0,0.00037424,120]
[423484353,1780155240000,-700.0,0.00037424,120]
[423484352,1780155240000,-700.0,0.00037424,120]
[423484355,1780155240000,-700.0,0.00037424,120]
[423484354,1780155240000,-700.0,0.00037424,120]
[423484359,1780155240000,-700.0,0.00037424,120]
[423484357,1780155240000,-700.0,0.00037424,120]
[423484358,1780155240000,-700.0,0.00037424,120]
[423484350,1780155240000,-700.0,0.00037424,120]
[423484360,1780155240000,-700.0,0.00037424,120]
[423484361,1780155240000,-700.0,0.00037424,120]
[423484362,1780155240000,-700.0,0.00037424,120]
[423484428,1780155241000,-1000.0,0.000378,7]
[423484422,1780155241000,-1000.0,0.000378,7]
[423484433,1780155241000,-1000.0,0.000378,7]
[423484431,1780155241000,-1000.0,0.000378,7]
[423484427,1780155241000,-1000.0,0.000378,7]
[423484420,1780155241000,-1000.0,0.000378,7]
[423484424,1780155241000,-1000.0,0.000378,7]
[423484436,1780155241000,-1000.0,0.000378,7]
[423484435,1780155241000,-1000.0,0.000378,7]
[423484425,1780155241000,-1000.0,0.000378,7]
[423484432,1780155241000,-1000.0,0.000378,7]
[423484426,1780155241000,-1000.0,0.000378,7]
[423484434,1780155241000,-1000.0,0.000378,7]
[423484441,1780155241000,-1000.0,0.000378,7]
[423484430,1780155241000,-1000.0,0.000378,7]
[423484448,1780155241000,-1000.0,0.000378,7]
[423484438,1780155241000,-1000.0,0.000378,7]
[423484440,1780155241000,-1000.0,0.000378,7]
[423484439,1780155241000,-1000.0,0.000378,7]
[423484437,1780155241000,-1000.0,0.000378,7]
[423484444,1780155241000,-1000.0,0.000378,7]
[423484445,1780155241000,-1000.0,0.000378,7]
[423484443,1780155241000,-1000.0,0.000378,7]
[423484447,1780155241000,-298.0,0.000378,7]
[423484446,1780155241000,-1000.0,0.000378,7]
[423484429,1780155241000,-1000.0,0.000378,7]
[423484416,1780155241000,-1000.0,0.000378,7]
[423484399,1780155241000,-250.0,0.00037771,2]
[423484418,1780155241000,-1000.0,0.000378,7]
[423484442,1780155241000,-1000.0,0.000378,7]
[423484394,1780155241000,-157.99773033,0.00037723,2]
[423484393,1780155241000,-151.25,0.00037702,60]
[423484395,1780155241000,-150.0,0.00037756,120]
[423484396,1780155241000,-250.0,0.00037771,2]
[423484398,1780155241000,-250.0,0.00037771,2]
[423484397,1780155241000,-250.0,0.00037771,2]
[423484400,1780155241000,-250.0,0.00037771,2]
[423484402,1780155241000,-5000.0,0.00037771,2]
[423484401,1780155241000,-250.0,0.00037771,2]
[423484410,1780155241000,-1000.0,0.000378,7]
[423484404,1780155241000,-5000.0,0.00037771,2]
[423484419,1780155241000,-1000.0,0.000378,7]
[423484408,1780155241000,-1000.0,0.000378,7]
[423484409,1780155241000,-1000.0,0.000378,7]
[423484411,1780155241000,-1000.0,0.000378,7]
[423484405,1780155241000,-5000.0,0.00037771,2]
[423484406,1780155241000,-5000.0,0.00037771,2]
[423484407,1780155241000,-5000.0,0.00037771,2]
[423484413,1780155241000,-1000.0,0.000378,7]
[423484412,1780155241000,-1000.0,0.000378,7]
[423484415,1780155241000,-1000.0,0.000378,7]
[423484423,1780155241000,-1000.0,0.000378,7]
[423484414,1780155241000,-1000.0,0.000378,7]
[423484417,1780155241000,-1000.0,0.000378,7]
[423484421,1780155241000,-1000.0,0.000378,7]
[423484403,1780155241000,-5000.0,0.00037771,2]
[423484450,1780155241000,-1000.0,0.000378,7]
[423484507,1780155241000,-150.0,0.00037878,120]
[423484451,1780155241000,-1000.0,0.000378,7]
[423484480,1780155241000,-1000.0,0.000378,7]
[423484483,1780155241000,-1000.0,0.000378,7]
[423484485,1780155241000,-1000.0,0.000378,7]
[423484488,1780155241000,-1000.0,0.000378,7]
[423484486,1780155241000,-1000.0,0.000378,7]
[423484487,1780155241000,-1000.0,0.000378,7]
[423484491,1780155241000,-1000.0,0.000378,7]
[423484484,1780155241000,-1000.0,0.000378,7]
[423484492,1780155241000,-1000.0,0.000378,7]
[423484489,1780155241000,-1000.0,0.000378,7]
[423484490,1780155241000,-1000.0,0.000378,7]
[423484493,1780155241000,-1000.0,0.000378,7]
[423484501,1780155241000,-500.0,0.00037804,30]
[423484496,1780155241000,-1000.0,0.000378,7]
[423484497,1780155241000,-1000.0,0.000378,7]
[423484495,1780155241000,-1000.0,0.000378,7]
[423484494,1780155241000,-1000.0,0.000378,7]
[423484498,1780155241000,-151.25,0.00037802,60]
[423484499,1780155241000,-500.0,0.00037804,30]
[423484500,1780155241000,-500.0,0.00037804,30]
[423484502,1780155241000,-514.63911262,0.00037804,30]
[423484503,1780155241000,-350.0,0.00037808,5]
[423484506,1780155241000,-1229.0,0.00037841,15]
[423484505,1780155241000,-1107.01,0.0003784,86]
[423484449,1780155241000,-1000.0,0.000378,7]
[423484482,1780155241000,-1000.0,0.000378,7]
[423484474,1780155241000,-1000.0,0.000378,7]
[423484504,1780155241000,-150.0,0.00037808,15]
[423484475,1780155241000,-1000.0,0.000378,7]
[423484477,1780155241000,-1000.0,0.000378,7]
[423484454,1780155241000,-1000.0,0.000378,7]
[423484452,1780155241000,-1000.0,0.000378,7]
[423484456,1780155241000,-1000.0,0.000378,7]
[423484455,1780155241000,-1000.0,0.000378,7]
[423484459,1780155241000,-1000.0,0.000378,7]
[423484457,1780155241000,-1000.0,0.000378,7]
[423484458,1780155241000,-1000.0,0.000378,7]
[423484460,1780155241000,-1000.0,0.000378,7]
[423484462,1780155241000,-1000.0,0.000378,7]
[423484463,1780155241000,-1000.0,0.000378,7]
[423484461,1780155241000,-1000.0,0.000378,7]
[423484464,1780155241000,-1000.0,0.000378,7]
[423484453,1780155241000,-1000.0,0.000378,7]
[423484466,1780155241000,-1000.0,0.000378,7]
[423484468,1780155241000,-1000.0,0.000378,7]
[423484479,1780155241000,-1000.0,0.000378,7]
[423484481,1780155241000,-1000.0,0.000378,7]
[423484476,1780155241000,-1000.0,0.000378,7]
[423484472,1780155241000,-1000.0,0.000378,7]
[423484478,1780155241000,-1000.0,0.000378,7]
[423484467,1780155241000,-1000.0,0.000378,7]
[423484470,1780155241000,-1000.0,0.000378,7]
[423484471,1780155241000,-1000.0,0.000378,7]
[423484469,1780155241000,-1000.0,0.000378,7]
[423484465,1780155241000,-1000.0,0.000378,7]
[423484473,1780155241000,-1000.0,0.000378,7]
[423484549,1780155242000,-12544.9219,0.000381,60]
[423484544,1780155242000,-150.0,0.00038061,120]
[423484548,1780155242000,-402.0,0.00038085,15]
[423484539,1780155242000,-525.0,0.00038011,2]
[423484537,1780155242000,-1111.0,0.00038,7]
[423484550,1780155242000,-151.25,0.00038102,60]
[423484541,1780155242000,-1356.0,0.00038011,2]
[423484540,1780155242000,-1226.0,0.00038011,2]
[423484534,1780155242000,-544.0,0.00038,30]
[423484542,1780155242000,-600.0,0.00038014,120]
[423484545,1780155242000,-199.65247369,0.00038073,2]
[423484555,1780155242000,-250.0,0.00038169,2]
[423484546,1780155242000,-150.0,0.00038076,120]
[423484547,1780155242000,-500.0,0.00038085,15]
[423484552,1780155242000,-210.06,0.00038128,2]
[423484556,1780155242000,-250.0,0.00038169,2]
[423484553,1780155242000,-150.0,0.00038146,120]
[423484551,1780155242000,-2671.5,0.00038125,30]
[423484554,1780155242000,-150.0,0.00038156,120]
[423484559,1780155242000,-254.1835756,0.00038169,2]
[423484557,1780155242000,-250.0,0.00038169,2]
[423484561,1780155242000,-5000.0,0.00038169,2]
[423484560,1780155242000,-5000.0,0.00038169,2]
[423484536,1780155242000,-850.0,0.00038,2]
[423484543,1780155242000,-150.0,0.00038059,2]
[423484538,1780155242000,-151.25,0.00038002,60]
[423484521,1780155242000,-50339.39,0.00038,14]
[423484535,1780155242000,-1067.0,0.00038,30]
[423484558,1780155242000,-250.0,0.00038169,2]
[423484508,1780155242000,-206.0175193,0.0003788,2]
[423484511,1780155242000,-4218.10799243,0.00037894,2]
[423484514,1780155242000,-199.65247369,0.00037973,2]
[423484515,1780155242000,-150.0,0.00037975,120]
[423484509,1780155242000,-151.12304771,0.00037889,7]
[423484510,1780155242000,-781.89200757,0.00037894,2]
[423484512,1780155242000,-706.3,0.000379,120]
[423484513,1780155242000,-151.25,0.00037902,60]
[423484517,1780155242000,-185.27749558,0.00037981,2]
[423484516,1780155242000,-159.72197894,0.00037976,2]
[423484522,1780155242000,-250.0,0.00038,7]
[423484520,1780155242000,-3000000.0,0.00038,30]
[423484524,1780155242000,-500.0,0.00038,14]
[423484519,1780155242000,-491.21659189,0.00038,14]
[423484523,1780155242000,-169.3,0.00038,3]
[423484518,1780155242000,-157.99773033,0.00037997,2]
[423484526,1780155242000,-238860.65568072,0.00038,2]
[423484525,1780155242000,-3200.0,0.00038,20]
[423484531,1780155242000,-5000.0,0.00038,2]
[423484530,1780155242000,-1450.91,0.00038,30]
[423484527,1780155242000,-222.46191408,0.00038,7]
[423484528,1780155242000,-167.33965901,0.00038,5]
[423484529,1780155242000,-2871.22,0.00038,30]
[423484532,1780155242000,-210.70572715,0.00038,2]
[423484533,1780155242000,-244.0,0.00038,2]
[423484562,1780155242000,-5000.0,0.00038169,2]
[423484619,1780155242000,-500.0,0.00038356,2]
[423484565,1780155242000,-199.65247369,0.00038173,2]
[423484594,1780155242000,-500.0,0.00038356,2]
[423484596,1780155242000,-500.0,0.00038356,2]
[423484603,1780155242000,-336.98206567,0.00038356,2]
[423484597,1780155242000,-500.0,0.00038356,2]
[423484602,1780155242000,-500.0,0.00038356,2]
[423484601,1780155242000,-500.0,0.00038356,2]
[423484598,1780155242000,-500.0,0.00038356,2]
[423484604,1780155242000,-500.0,0.00038356,2]
[423484599,1780155242000,-500.0,0.00038356,2]
[423484595,1780155242000,-500.0,0.00038356,2]
[423484605,1780155242000,-500.0,0.00038356,2]
[423484606,1780155242000,-500.0,0.00038356,2]
[423484607,1780155242000,-500.0,0.00038356,2]
[423484609,1780155242000,-500.0,0.00038356,2]
[423484613,1780155242000,-500.0,0.00038356,2]
[423484608,1780155242000,-500.0,0.00038356,2]
[423484611,1780155242000,-500.0,0.00038356,2]
[423484610,1780155242000,-500.0,0.00038356,2]
[423484612,1780155242000,-500.0,0.00038356,2]
[423484615,1780155242000,-500.0,0.00038356,2]
[423484614,1780155242000,-500.0,0.00038356,2]
[423484616,1780155242000,-500.0,0.00038356,2]
[423484618,1780155242000,-335.4201208,0.00038356,2]
[423484617,1780155242000,-500.0,0.00038356,2]
[423484563,1780155242000,-5000.0,0.00038169,2]
[423484593,1780155242000,-500.0,0.00038356,2]
[423484589,1780155242000,-1272.0,0.00038329,120]
[423484600,1780155242000,-157.65089926,0.00038356,2]
[423484592,1780155242000,-500.0,0.00038356,2]
[423484568,1780155242000,-150.0,0.00038194,120]
[423484591,1780155242000,-502.08362884,0.00038329,120]
[423484567,1780155242000,-226.31,0.00038186,30]
[423484564,1780155242000,-5000.0,0.00038169,2]
[423484566,1780155242000,-2000.0,0.00038186,30]
[423484570,1780155242000,-151.25,0.00038202,60]
[423484572,1780155242000,-199.65247369,0.00038273,2]
[423484569,1780155242000,-213.25,0.000382,40]
[423484573,1780155242000,-485.41,0.000383,120]
[423484576,1780155242000,-1919.5,0.00038329,120]
[423484575,1780155242000,-1919.5,0.00038329,120]
[423484581,1780155242000,-2020.0,0.00038329,120]
[423484580,1780155242000,-2154.5,0.00038329,120]
[423484571,1780155242000,-157.99773033,0.00038271,2]
[423484587,1780155242000,-2161.0,0.00038329,120]
[423484590,1780155242000,-1272.0,0.00038329,120]
[423484578,1780155242000,-1701.0,0.00038329,120]
[423484584,1780155242000,-1951.5,0.00038329,120]
[423484586,1780155242000,-1338.0,0.00038329,120]
[423484588,1780155242000,-2161.0,0.00038329,120]
[423484585,1780155242000,-1338.0,0.00038329,120]
[423484583,1780155242000,-1951.5,0.00038329,120]
[423484579,1780155242000,-2154.5,0.00038329,120]
[423484577,1780155242000,-1701.0,0.00038329,120]
[423484574,1780155242000,-151.25,0.00038302,60]
[423484582,1780155242000,-2063.0,0.00038329,120]
[423484661,1780155243000,-1008.79,0.00038394,120]
[423484656,1780155243000,-208.98230896,0.00038356,15]
[423484658,1780155243000,-1102.58,0.00038367,7]
[423484659,1780155243000,-1107.01,0.0003838,105]
[423484651,1780155243000,-252.40780292,0.00038356,2]
[423484652,1780155243000,-1062.535,0.00038356,120]
[423484653,1780155243000,-200.0,0.00038356,30]
[423484654,1780155243000,-638.73,0.00038356,30]
[423484655,1780155243000,-6201.20838944,0.00038356,15]
[423484660,1780155243000,-2777.47872361,0.00038385,10]
[423484657,1780155243000,-923.61,0.00038356,30]
[423484662,1780155243000,-152.44,0.00038394,120]
[423484675,1780155243000,-151.25,0.00038502,120]
[423484664,1780155243000,-1229.0,0.00038396,16]
[423484673,1780155243000,-1000.0,0.000385,2]
[423484669,1780155243000,-403.42888621,0.00038471,104]
[423484665,1780155243000,-151.25,0.00038402,120]
[423484672,1780155243000,-82592.47519842,0.000385,3]
[423484671,1780155243000,-584.80561472,0.000385,5]
[423484668,1780155243000,-403.42888621,0.00038471,104]
[423484666,1780155243000,-500.0,0.00038416,2]
[423484667,1780155243000,-150.0,0.00038442,120]
[423484670,1780155243000,-500.0,0.000385,14]
[423484674,1780155243000,-122804.80960744,0.000385,7]
[423484649,1780155243000,-150.0,0.00038356,2]
[423484663,1780155243000,-5720.08,0.00038394,120]
[423484647,1780155243000,-170.10410174,0.00038356,2]
[423484624,1780155243000,-500.0,0.00038356,2]
[423484642,1780155243000,-300.0,0.00038356,2]
[423484623,1780155243000,-500.0,0.00038356,2]
[423484622,1780155243000,-500.0,0.00038356,2]
[423484621,1780155243000,-500.0,0.00038356,2]
[423484627,1780155243000,-500.0,0.00038356,2]
[423484620,1780155243000,-500.0,0.00038356,2]
[423484626,1780155243000,-500.0,0.00038356,2]
[423484625,1780155243000,-500.0,0.00038356,2]
[423484637,1780155243000,-300.0,0.00038356,2]
[423484630,1780155243000,-311.63491452,0.00038356,2]
[423484634,1780155243000,-300.0,0.00038356,2]
[423484633,1780155243000,-300.0,0.00038356,2]
[423484632,1780155243000,-465.67112671,0.00038356,7]
[423484646,1780155243000,-300.0,0.00038356,2]
[423484638,1780155243000,-300.0,0.00038356,2]